bitfinex/quotes_BTCUSD_20221001
["timestamp","ask_amount","ask_price","bid_price","bid_amount"]
[1664609426663,2.4719225,19291.0,19290.0,0.03546463]
[1664609426890,2.4219225,19291.0,19290.0,0.03546463]
[1664609427943,2.28110723,19291.0,19290.0,0.03546463]
[1664609428603,2.36110723,19291.0,19290.0,0.03546463]
[1664609429405,1.24937579,19291.0,19290.0,0.03546463]
[1664609429631,0.09042049,19291.0,19290.0,0.03546463]
[1664609429850,0.09042049,19291.0,19290.0,0.39421463]
[1664609430092,0.01042049,19291.0,19290.0,0.39421463]
[1664609430703,0.08942049,19291.0,19290.0,2.48881648]
[1664609430928,0.08942049,19291.0,19290.0,3.7215983]
[1664609431698,0.08942049,19291.0,19290.0,3.34356722]
[1664609431950,0.01042049,19291.0,19290.0,3.34356722]
[1664609432217,0.01042049,19291.0,19290.0,2.98481722]
[1664609432442,0.01042049,19291.0,19290.0,3.34356722]
[1664609432676,0.01042049,19291.0,19290.0,2.90594607]
[1664609433384,0.01042049,19291.0,19290.0,2.39421463]
[1664609439572,0.01342015,19291.0,19290.0,2.39421463]
[1664609442468,0.01342015,19291.0,19290.0,0.39421463]
[1664609444592,0.01342015,19291.0,19290.0,0.58400813]
[1664609447635,0.01342015,19291.0,19290.0,0.39421463]
[1664609448095,0.03791915,19292.0,19291.0,0.1]
[1664609448546,0.03791915,19292.0,19291.0,0.45875]
[1664609448760,0.11691915,19292.0,19291.0,0.45875]
[1664609448978,0.11691915,19292.0,19291.0,0.1]
[1664609449196,0.28410506,19292.0,19291.0,0.03053094]
[1664609449380,0.41360106,19292.0,19291.0,0.03053094]
[1664609449931,0.33460106,19292.0,19291.0,0.03053094]
[1664609450482,0.29700215,19292.0,19291.0,0.03053094]
[1664609450811,0.37600215,19292.0,19291.0,0.03053094]
[1664609451803,0.29700215,19292.0,19291.0,0.03053094]
[1664609452518,0.30632068,19292.0,19291.0,0.03053094]
[1664609452726,0.38532068,19292.0,19291.0,0.03053094]
[1664609453027,0.12623768,19292.0,19291.0,0.03053094]
[1664609453262,0.12623768,19292.0,19291.0,0.64934251]
[1664609453946,0.12623768,19292.0,19291.0,1.02640167]
[1664609454381,0.04723768,19292.0,19291.0,1.92640167]
[1664609454899,0.04923768,19292.0,19291.0,1.92640167]
[1664609455925,0.04723768,19292.0,19291.0,1.92640167]
[1664609456736,0.12723768,19292.0,19291.0,1.92640167]
[1664609457173,0.12723768,19292.0,19291.0,1.19059251]
[1664609457369,0.12723768,19292.0,19291.0,0.29059251]
[1664609457599,0.12723768,19292.0,19291.0,0.2498401]
[1664609458037,0.04723768,19292.0,19291.0,0.2498401]
[1664609458187,0.04723768,19292.0,19291.0,0.6085901]
[1664609458626,0.12723768,19292.0,19291.0,0.6085901]
[1664609459881,0.04723768,19292.0,19291.0,0.6085901]
[1664609460834,0.12723768,19292.0,19291.0,0.6085901]
[1664609461655,0.12723768,19292.0,19291.0,0.2498401]
[1664609461871,0.12723768,19292.0,19291.0,0.6085901]
[1664609462269,0.04723768,19292.0,19291.0,0.68240901]
[1664609462537,0.04723768,19292.0,19291.0,0.2498401]
[1664609462734,0.12723768,19292.0,19291.0,0.2498401]
[1664609463260,0.12723768,19292.0,19291.0,0.6085901]
[1664609463929,0.04723768,19292.0,19291.0,0.6085901]
[1664609464794,0.24582468,19292.0,19291.0,0.6085901]
[1664609465017,0.24582468,19292.0,19291.0,0.03053094]
[1664609466161,0.50499868,19292.0,19291.0,0.03053094]
[1664609466879,0.58399868,19292.0,19291.0,0.03053094]
[1664609468055,0.43599868,19292.0,19291.0,0.03053094]
[1664609468848,0.51499868,19292.0,19291.0,0.03053094]
[1664609469487,2.95285587,19292.0,19291.0,3.094e-05]
[1664609469657,5.60045709,19292.0,19291.0,3.094e-05]
[1664609469963,5.72671033,19292.0,19291.0,3.094e-05]
[1664609470221,5.54431148,19292.0,19291.0,3.094e-05]
[1664609470441,0.21017906,19290.0,19289.0,0.0021]
[1664609470662,1.92596146,19290.0,19289.0,0.0021]
[1664609470888,1.98673264,19290.0,19289.0,0.0021]
[1664609471104,2.2014278,19290.0,19289.0,0.0021]
[1664609471357,2.20143028,19290.0,19289.0,0.00703369]
[1664609471579,2.21210266,19290.0,19289.0,0.00703369]
[1664609471798,2.04738345,19290.0,19289.0,0.00703369]
[1664609472739,2.23601366,19290.0,19289.0,0.00703369]
[1664609472961,2.31501366,19290.0,19289.0,0.00703369]
[1664609473184,2.47969725,19290.0,19289.0,0.00703369]
[1664609473405,2.35554834,19290.0,19289.0,0.00703369]
[1664609473646,2.31501954,19290.0,19289.0,0.00703369]
[1664609474100,2.23601954,19290.0,19289.0,0.00703369]
[1664609474555,2.23601952,19290.0,19289.0,0.00703369]
[1664609474778,2.31501952,19290.0,19289.0,0.00703369]
[1664609475242,2.53415175,19290.0,19289.0,0.00703369]
[1664609475471,2.40859689,19290.0,19289.0,0.00703369]
[1664609476161,2.45517609,19290.0,19289.0,0.00703369]
[1664609476388,2.20803609,19290.0,19289.0,0.00703369]
[1664609476797,2.36806352,19290.0,19289.0,0.00703369]
[1664609477234,2.28703609,19290.0,19289.0,0.00703369]
[1664609477889,2.36806352,19290.0,19289.0,0.00703369]
[1664609478108,2.20803609,19290.0,19289.0,0.00703369]
[1664609478565,0.05,19287.0,19286.0,0.0021]
[1664609478802,1.68846906,19287.0,19286.0,0.0021]
[1664609479086,1.26173144,19287.0,19286.0,0.0021]
[1664609479325,1.64571611,19287.0,19286.0,0.0021]
[1664609479768,1.65638602,19287.0,19286.0,0.0021]
[1664609480670,1.89098387,19287.0,19286.0,0.0021]
[1664609480881,2.34546667,19287.0,19286.0,0.0021]
[1664609481783,1.96998387,19287.0,19286.0,0.0021]
[1664609481993,1.89098387,19287.0,19286.0,0.0021]
[1664609482446,2.26646667,19287.0,19286.0,0.0021]
[1664609482948,2.34546667,19287.0,19286.0,0.0021]
[1664609483822,2.39852287,19287.0,19286.0,0.0021]
[1664609483992,2.3600248,19287.0,19286.0,0.0021]
[1664609484891,2.4390248,19287.0,19286.0,0.0021]
[1664609485322,2.39852287,19287.0,19286.0,0.0021]
[1664609486218,1.84404007,19287.0,19286.0,0.0021]
[1664609486567,1.84098387,19287.0,19286.0,0.0021]
[1664609486801,1.91998387,19287.0,19286.0,0.0021]
[1664609487019,1.86998387,19287.0,19286.0,0.0021]
[1664609487536,1.91998387,19287.0,19286.0,0.0021]
[1664609488079,1.84098387,19287.0,19286.0,0.0021]
[1664609488305,2.21646667,19287.0,19286.0,0.0021]
[1664609488529,2.2695234,19287.0,19286.0,0.0021]
[1664609488774,1.9730406,19287.0,19286.0,0.0021]
[1664609490112,1.8940406,19287.0,19286.0,0.0021]
[1664609490406,2.2695234,19287.0,19286.0,0.0021]
[1664609490837,2.3255234,19287.0,19286.0,0.0021]
[1664609491704,2.3255234,19287.0,19286.0,0.00076197]
[1664609491938,3.2328674,19287.0,19286.0,0.00076197]
[1664609492303,3.1768674,19287.0,19286.0,0.00076197]
[1664609493113,3.2428674,19287.0,19286.0,0.00076197]
[1664609494354,3.7215674,19287.0,19286.0,0.00076197]
[1664609494998,3.7875674,19287.0,19286.0,0.00076197]
[1664609496107,3.7215674,19287.0,19286.0,0.00076197]
[1664609496332,2.8013846,19287.0,19286.0,0.00076197]
[1664609496575,2.7013846,19287.0,19286.0,0.00076197]
[1664609497070,2.1673846,19287.0,19286.0,0.00076197]
[1664609497300,1.7303432,19287.0,19286.0,0.00076197]
[1664609497969,1.7803432,19287.0,19286.0,0.00076197]
[1664609498218,1.7643432,19287.0,19286.0,0.00076197]
[1664609498477,2.3143432,19287.0,19286.0,0.00076197]
[1664609498694,1.6643432,19287.0,19286.0,0.00076197]
[1664609498925,1.48474535,19287.0,19286.0,0.00076197]
[1664609499599,1.71097299,19287.0,19286.0,0.00076197]
[1664609500285,2.25597299,19287.0,19286.0,0.00076197]
[1664609500736,2.30597299,19287.0,19286.0,0.00076197]
[1664609500993,2.31097299,19287.0,19286.0,0.00076197]
[1664609501192,2.36097299,19287.0,19286.0,0.00076197]
[1664609502315,2.30597299,19287.0,19286.0,0.00076197]
[1664609502986,2.33297299,19287.0,19286.0,0.00076197]
[1664609504052,2.10674535,19287.0,19286.0,0.00076197]
[1664609504287,0.39953091,19287.0,19286.0,0.00076197]
[1664609504908,0.47653091,19287.0,19286.0,0.00076197]
[1664609505562,0.21728991,19287.0,19286.0,0.00076197]
[1664609505816,0.21728991,19287.0,19286.0,0.04908521]
[1664609505817,0.08766991,19287.0,19286.0,0.04908521]
[1664609506046,0.08766991,19287.0,19286.0,0.40783521]
[1664609506269,0.01066991,19287.0,19286.0,0.40783521]
[1664609506728,0.01066991,19287.0,19286.0,0.7829568]
[1664609506941,0.08466991,19287.0,19286.0,0.7829568]
[1664609507384,0.074,19287.0,19286.0,0.7829568]
[1664609507617,0.074,19287.0,19286.0,0.17876821]
[1664609507844,0.074,19287.0,19286.0,0.53751821]
[1664609508372,0.129527,19288.0,19287.0,0.45875]
[1664609508629,0.129527,19288.0,19287.0,0.1]
[1664609508846,0.129527,19288.0,19287.0,0.45875]
[1664609509061,0.186527,19288.0,19287.0,0.45875]
[1664609510244,0.057,19288.0,19286.0,0.30845021]
[1664609510471,0.186527,19288.0,19287.0,0.35875]
[1664609510712,0.388649,19289.0,19288.0,0.1]
[1664609510934,0.25913,19289.0,19288.0,0.1]
[1664609511390,0.129521,19289.0,19287.0,0.35875]
[1664609511607,0.129521,19289.0,19288.0,0.45875]
[1664609511826,0.129521,19289.0,19288.0,0.1]
[1664609512324,0.14019822,19289.0,19288.0,0.1]
[1664609512984,0.21919822,19289.0,19288.0,0.1]
[1664609513883,0.08967722,19289.0,19288.0,0.13239608]
[1664609514124,0.08967722,19289.0,19288.0,0.49114608]
[1664609514343,0.01067722,19289.0,19288.0,0.49114608]
[1664609514563,0.01067722,19289.0,19288.0,0.8665304]
[1664609515007,0.06567722,19289.0,19288.0,0.8665304]
[1664609515238,0.06567722,19289.0,19288.0,0.5077804]
[1664609515459,0.06567722,19289.0,19288.0,0.8665304]
[1664609515976,0.06567722,19289.0,19288.0,0.5077804]
[1664609516204,0.01067722,19289.0,19288.0,0.8665304]
[1664609516664,0.01067722,19289.0,19288.0,2.8665304]
[1664609516891,0.01067722,19289.0,19288.0,2.8664458]
[1664609517112,0.061,19289.0,19288.0,2.8664458]
[1664609517368,0.061,19289.0,19288.0,3.7737448]
[1664609517581,0.061,19289.0,19288.0,3.77441924]
[1664609517799,0.061,19289.0,19288.0,3.39903492]
[1664609518255,0.01069422,19290.0,19289.0,0.4586654]
[1664609518949,0.09069422,19290.0,19289.0,0.4586654]
[1664609519851,0.09069422,19290.0,19289.0,0.0999154]
[1664609520070,0.09069422,19290.0,19289.0,0.4586654]
[1664609520288,0.01069422,19290.0,19289.0,0.0999154]
[1664609520501,0.01069422,19290.0,19289.0,0.4586654]
[1664609520940,0.07969422,19290.0,19289.0,0.55644508]
[1664609522254,0.01069422,19290.0,19289.0,0.55644508]
[1664609523178,0.07969422,19290.0,19289.0,0.55644508]
[1664609524359,0.01069422,19290.0,19289.0,0.55644508]
[1664609524956,0.07969422,19290.0,19289.0,0.81644508]
[1664609525620,0.07969422,19290.0,19289.0,1.19186206]
[1664609526106,0.07969422,19290.0,19289.0,0.81644508]
[1664609526328,0.01069422,19290.0,19289.0,1.19189497]
[1664609526555,0.01069422,19290.0,19289.0,0.81644508]
[1664609526773,0.01069422,19290.0,19289.0,1.19192788]
[1664609526994,0.07969422,19290.0,19289.0,1.19192788]
[1664609527694,0.07969422,19290.0,19289.0,0.81644508]
[1664609528234,0.01069422,19290.0,19289.0,1.32817652]
[1664609528759,0.01069422,19290.0,19289.0,3.34487641]
[1664609528972,0.07969422,19290.0,19289.0,3.32817652]
[1664609529618,0.07969422,19290.0,19289.0,2.96942652]
[1664609529886,0.07969422,19290.0,19289.0,3.32817652]
[1664609530342,0.01069422,19290.0,19289.0,3.32817652]
[1664609530915,0.01060032,19290.0,19289.0,3.32817652]
[1664609531114,0.07960032,19290.0,19289.0,3.32817652]
[1664609531784,0.07957126,19290.0,19289.0,3.32817652]
[1664609532721,0.01057126,19290.0,19289.0,3.32817652]
[1664609533178,0.07957126,19290.0,19289.0,3.32817652]
[1664609533616,0.069,19290.0,19289.0,3.32817652]
[1664609533851,0.069,19290.0,19289.0,4.09248132]
[1664609534289,0.129504,19291.0,19289.0,4.09248132]
[1664609534441,0.129504,19291.0,19290.0,0.4586654]
[1664609535087,0.195504,19291.0,19290.0,0.4586654]
[1664609535302,0.195504,19291.0,19290.0,0.0999154]
[1664609535862,0.195504,19291.0,19290.0,0.4586654]
[1664609536282,0.129504,19291.0,19290.0,0.4586654]
[1664609536509,0.129504,19291.0,19290.0,0.0999154]
[1664609536722,0.129504,19291.0,19290.0,0.4586654]
[1664609536921,0.14018412,19291.0,19290.0,0.4586654]
[1664609537168,0.20618412,19291.0,19290.0,0.0999154]
[1664609537367,0.20618412,19291.0,19290.0,0.4586654]
[1664609537923,0.20618412,19291.0,19290.0,0.0999154]
[1664609538136,0.20618412,19291.0,19290.0,0.4586654]
[1664609538354,0.14018412,19291.0,19290.0,0.4586654]
[1664609538558,0.14018412,19291.0,19290.0,1.01413005]
[1664609539054,0.21918412,19291.0,19290.0,0.63864725]
[1664609539710,0.08968012,19291.0,19290.0,0.63864725]
[1664609539834,0.08968012,19291.0,19290.0,0.27989725]
[1664609540307,0.01068012,19291.0,19290.0,0.0999154]
[1664609541057,0.07968012,19291.0,19290.0,0.4586654]
[1664609541482,0.07968012,19291.0,19290.0,0.0999154]
[1664609541700,0.07968012,19291.0,19290.0,0.4586654]
[1664609542314,0.01068012,19291.0,19290.0,0.4586654]
[1664609542622,0.01068012,19291.0,19290.0,0.0999154]
[1664609542825,0.258996,19292.0,19290.0,0.4586654]
[1664609543037,0.258996,19292.0,19291.0,0.0999154]
[1664609544886,0.26968084,19292.0,19291.0,0.0999154]
[1664609545105,0.34868084,19292.0,19290.0,0.2295154]
[1664609545330,0.34868084,19292.0,19291.0,0.4586654]
[1664609545545,0.34868084,19292.0,19291.0,0.0999154]
[1664609546719,0.26968084,19292.0,19291.0,0.4586654]
[1664609546937,0.26968084,19292.0,19291.0,0.0999154]
[1664609547153,0.32768084,19292.0,19291.0,0.0999154]
[1664609548102,0.19818384,19292.0,19291.0,2.8341482]
[1664609548329,0.19818384,19292.0,19291.0,3.09280314]
[1664609548330,0.14018384,19292.0,19291.0,3.09280314]
[1664609548558,0.14018384,19292.0,19291.0,3.66893458]
[1664609548786,0.01068484,19292.0,19291.0,3.66893458]
[1664609549987,0.01068484,19292.0,19291.0,3.31018458]
[1664609550138,0.01068484,19292.0,19291.0,3.66893458]
[1664609550367,0.01068484,19292.0,19291.0,3.31018458]
[1664609550568,0.01068484,19292.0,19291.0,3.66893458]
[1664609554925,0.01068484,19292.0,19291.0,3.67633458]
[1664609555869,0.01068484,19292.0,19291.0,1.67633458]
[1664609556544,0.04050193,19297.0,19293.0,0.38367361]
[1664609556769,4.75636861,19298.0,19293.0,0.38367361]
[1664609556770,0.129465,19298.0,19296.0,0.0999154]
[1664609556993,0.129465,19298.0,19297.0,0.66350473]
[1664609557223,2.22028893,19300.0,19297.0,0.66350473]
[1664609557224,0.129454,19299.0,19297.0,0.66350473]
[1664609557444,0.129454,19299.0,19297.0,0.25921]
[1664609557694,0.29940793,19299.0,19297.0,0.25921]
[1664609557906,0.258906,19299.0,19297.0,0.25921]
[1664609558171,0.258906,19299.0,19298.0,0.0999154]
[1664609558391,0.29940793,19299.0,19298.0,0.0999154]
[1664609558612,0.42894793,19299.0,19297.0,0.25921]
[1664609558836,0.49738124,19299.0,19297.0,0.25921]
[1664609559306,0.57638124,19299.0,19298.0,0.0999154]
[1664609560383,0.42894793,19299.0,19298.0,0.0999154]
[1664609560538,0.388446,19299.0,19298.0,0.0999154]
[1664609560933,0.39807938,19299.0,19298.0,0.0999154]
[1664609561152,0.47707938,19299.0,19298.0,0.0999154]
[1664609562455,0.39807938,19299.0,19298.0,0.0999154]
[1664609563065,0.47707938,19299.0,19298.0,0.0999154]
[1664609563440,0.47707938,19299.0,19297.0,0.25921]
[1664609563881,0.34753938,19299.0,19298.0,0.0999154]
[1664609564112,0.21808738,19299.0,19298.0,0.0999154]
[1664609564345,0.00963338,19299.0,19298.0,0.0999154]
[1664609565229,0.08863338,19299.0,19298.0,0.0999154]
[1664609565467,0.079,19299.0,19297.0,0.25921]
[1664609566060,0.079,19299.0,19298.0,0.0999154]
[1664609566294,0.129444,19300.0,19298.0,0.0999154]
[1664609566811,0.258888,19300.0,19299.0,0.0999154]
[1664609567024,0.258888,19300.0,19297.0,0.47222084]
[1664609567239,0.337888,19300.0,19298.0,0.0388763]
[1664609568137,0.337888,19300.0,19299.0,0.0999154]
[1664609568364,0.258888,19300.0,19298.0,0.0388763]
[1664609568590,0.258888,19300.0,19297.0,0.25921]
[1664609569146,0.326888,19300.0,19297.0,0.25921]
[1664609569453,0.33651882,19300.0,19297.0,0.25921]
[1664609570482,0.26851882,19300.0,19297.0,0.25921]
[1664609571160,0.33651882,19300.0,19297.0,0.25921]
[1664609572434,0.26851882,19300.0,19297.0,0.25921]
[1664609573267,0.33651882,19300.0,19299.0,0.0999154]
[1664609573480,0.46605282,19300.0,19299.0,0.0999154]
[1664609573823,0.46605282,19300.0,19297.0,0.25921]
[1664609574353,0.46605282,19300.0,19297.0,0.34266774]
[1664609574661,0.39805282,19300.0,19299.0,0.0999154]
[1664609575299,0.47705282,19300.0,19299.0,0.0999154]
[1664609575526,0.34751882,19300.0,19297.0,0.25921]
[1664609575744,0.34751882,19300.0,19297.0,0.34266774]
[1664609575987,0.34751882,19300.0,19299.0,0.0999154]
[1664609576523,0.34751882,19300.0,19297.0,0.388762]
[1664609576524,0.26851882,19300.0,19297.0,0.388762]
[1664609577229,0.33651882,19300.0,19297.0,0.38867612]
[1664609577881,0.33651882,19300.0,19297.0,0.25912412]
[1664609578467,0.26851882,19300.0,19297.0,0.25912412]
[1664609578675,0.26851882,19300.0,19297.0,0.51912412]
[1664609579278,0.26851882,19300.0,19297.0,0.62857338]
[1664609579279,0.33651882,19300.0,19297.0,0.62857338]
[1664609579513,0.33651882,19300.0,19297.0,0.75812538]
[1664609580614,0.26851882,19300.0,19297.0,0.75812538]
[1664609580878,0.26851882,19300.0,19297.0,0.64867612]
[1664609581365,0.34851882,19300.0,19297.0,0.64867612]
[1664609581586,0.25908,19299.0,19297.0,0.51912412]
[1664609581814,0.34819928,19299.0,19297.0,0.51912412]
[1664609582040,0.60727928,19299.0,19297.0,0.51912412]
[1664609583185,0.67827928,19299.0,19297.0,0.51912412]
[1664609584309,0.67821755,19299.0,19297.0,0.51912412]
[1664609584533,0.60721755,19299.0,19297.0,0.51912412]
[1664609585283,0.67521755,19299.0,19297.0,0.51912412]
[1664609586424,0.72052756,19299.0,19297.0,0.51912412]
[1664609587167,0.78852756,19299.0,19297.0,0.51912412]
[1664609588819,0.72052756,19299.0,19297.0,0.51912412]
[1664609589261,0.78852756,19299.0,19297.0,0.51912412]
[1664609590253,0.67521755,19299.0,19297.0,0.51912412]
[1664609590478,0.60721755,19299.0,19297.0,0.51912412]
[1664609591211,0.67521755,19299.0,19297.0,0.51912412]
[1664609591426,0.67521755,19299.0,19298.0,0.0999154]
[1664609591661,0.67521755,19299.0,19297.0,0.51912412]
[1664609592455,0.60721755,19299.0,19297.0,0.51912412]
[1664609593100,0.64771948,19299.0,19297.0,0.51912412]
[1664609593508,0.71571948,19299.0,19297.0,0.51912412]
[1664609594462,0.64771948,19299.0,19297.0,0.51912412]
[1664609595290,0.71571948,19299.0,19297.0,0.51912412]
[1664609595632,0.86262071,19299.0,19297.0,0.51912412]
[1664609596480,0.79462071,19299.0,19297.0,0.51912412]
[1664609596866,0.64771948,19299.0,19297.0,0.51912412]
[1664609597085,0.04050193,19298.0,19297.0,0.51912412]
[1664609597215,0.04050193,19298.0,19297.0,0.26]
[1664609597431,0.10125482,19298.0,19297.0,0.26]
[1664609597649,1.00808382,19298.0,19297.0,0.255]
[1664609597882,1.1725145,19298.0,19297.0,0.255]
[1664609599238,1.2435145,19298.0,19297.0,0.255]
[1664609599466,1.18276161,19298.0,19297.0,0.255]
[1664609600460,1.11176161,19298.0,19297.0,0.255]
[1664609600689,1.12140997,19298.0,19297.0,0.255]
[1664609601315,1.18940997,19298.0,19297.0,0.255]
[1664609601526,1.02497929,19298.0,19297.0,0.255]
[1664609601768,1.08573218,19298.0,19297.0,0.255]
[1664609602610,1.01773218,19298.0,19297.0,0.255]
[1664609602968,0.95697929,19298.0,19297.0,0.255]
[1664609603417,1.02497929,19298.0,19297.0,0.255]
[1664609603620,1.08573218,19298.0,19297.0,0.255]
[1664609603831,1.02497929,19298.0,19297.0,0.255]
[1664609603958,1.08573218,19298.0,19297.0,0.255]
[1664609604407,1.23397861,19298.0,19297.0,0.255]
[1664609605283,1.30197861,19298.0,19297.0,0.255]
[1664609606609,1.23397861,19298.0,19297.0,0.255]
[1664609607265,1.30197861,19298.0,19297.0,0.255]
[1664609607516,1.08573218,19298.0,19297.0,0.255]
[1664609608330,1.7262341,19298.0,19297.0,0.255]
[1664609608556,1.01783395,19298.0,19297.0,0.255]
[1664609609410,1.08583395,19298.0,19297.0,0.255]
[1664609610110,1.1262341,19298.0,19297.0,0.255]
[1664609610530,4.97018938,19298.0,19297.0,0.255]
[1664609610743,5.82371623,19298.0,19297.0,0.255]
[1664609611062,5.79271238,19298.0,19297.0,0.255]
[1664609611239,5.77045756,19298.0,19297.0,0.255]
[1664609611836,5.87195578,19298.0,19297.0,0.255]
[1664609612054,5.77195578,19298.0,19297.0,0.255]
[1664609612482,3.33424987,19298.0,19297.0,0.255]
[1664609612698,3.25524987,19298.0,19297.0,0.255]
[1664609612974,2.87976707,19298.0,19297.0,0.255]
[1664609613189,2.82976707,19298.0,19297.0,0.255]
[1664609613401,2.95876707,19298.0,19297.0,0.255]
[1664609614302,2.68444108,19298.0,19297.0,0.255]
[1664609614526,2.74533239,19298.0,19297.0,0.255]
[1664609614765,2.60544108,19298.0,19297.0,0.255]
[1664609615496,2.74533046,19298.0,19297.0,0.255]
[1664609616627,2.66633046,19298.0,19297.0,0.255]
[1664609617481,2.72633046,19298.0,19297.0,0.255]
[1664609617936,1.58969035,19298.0,19297.0,0.255]
[1664609618579,1.52969035,19298.0,19297.0,0.255]
[1664609619508,1.58969035,19298.0,19297.0,0.255]
[1664609619972,0.9700208,19298.0,19297.0,0.255]
[1664609620683,0.9100208,19298.0,19297.0,0.255]
[1664609620917,0.13919536,19298.0,19297.0,0.255]
[1664609621137,0.00964836,19298.0,19297.0,0.255]
[1664609621339,0.08964836,19298.0,19297.0,0.255]
[1664609622229,0.08964836,19298.0,19297.0,0.25491993]
[1664609622663,0.00964836,19298.0,19297.0,0.25491993]
[1664609623409,0.08964836,19298.0,19297.0,0.25491993]
[1664609624733,0.00964836,19298.0,19297.0,0.25491993]
[1664609625393,0.08964836,19298.0,19297.0,0.25491993]
[1664609625884,0.08964836,19298.0,19297.0,0.28041192]
[1664609626679,0.00964836,19298.0,19297.0,0.25491993]
[1664609626894,0.00964836,19298.0,19297.0,2.25491993]
[1664609627114,0.00964836,19298.0,19297.0,2.61366993]
[1664609627514,0.08,19298.0,19297.0,2.61366993]
[1664609628081,0.08,19298.0,19297.0,2.25491993]
[1664609628321,0.08,19298.0,19297.0,2.88291503]
[1664609628524,0.29950017,19299.0,19297.0,2.88291503]
[1664609628820,0.29950017,19299.0,19297.0,2.52416503]
[1664609629481,0.37950017,19299.0,19297.0,2.52416503]
[1664609629610,0.209454,19299.0,19298.0,0.4586654]
[1664609629824,0.209454,19299.0,19298.0,0.0999154]
[1664609630388,0.209454,19299.0,19297.0,0.38447293]
[1664609630625,0.04059217,19301.0,19298.0,3.2404078]
[1664609630895,0.14207761,19302.0,19300.0,1.0]
[1664609630896,0.12943,19302.0,19300.0,1.0]
[1664609631106,0.12943,19302.0,19301.0,2.9341482]
[1664609631982,0.129422,19303.0,19301.0,2.9415482]
[1664609632261,0.129422,19303.0,19302.0,0.4586654]
[1664609632479,0.17001417,19303.0,19302.0,0.4586654]
[1664609632828,0.129422,19303.0,19302.0,0.0999154]
[1664609633039,0.129422,19303.0,19302.0,0.4586654]
[1664609633471,0.208422,19303.0,19302.0,0.4586654]
[1664609634015,0.208422,19303.0,19302.0,0.94421182]
[1664609634674,0.129422,19303.0,19302.0,0.94421182]
[1664609635310,0.208422,19303.0,19302.0,0.94421182]
[1664609635520,0.21808484,19303.0,19302.0,0.94421182]
[1664609636426,0.21749692,19303.0,19302.0,0.94421182]
[1664609636695,0.13849692,19303.0,19302.0,0.94421182]
[1664609637146,0.00907492,19303.0,19302.0,0.94421182]
[1664609637586,0.08907492,19303.0,19302.0,0.94421182]
[1664609638774,0.00907492,19303.0,19302.0,0.94421182]
[1664609639438,0.08907492,19303.0,19302.0,0.94421182]
[1664609640090,0.08907492,19303.0,19302.0,0.56872902]
[1664609640530,0.08907492,19303.0,19302.0,0.35875]
[1664609640752,0.00907492,19303.0,19301.0,1.27483]
[1664609640982,0.00907492,19303.0,19302.0,2.4753982]
[1664609641238,0.00907492,19303.0,19302.0,0.4586654]
[1664609641451,0.07207492,19303.0,19302.0,1.05867088]
[1664609642820,0.00907492,19303.0,19302.0,1.05867088]
[1664609643422,0.08907492,19303.0,19302.0,1.05867088]
[1664609645097,0.08907492,19303.0,19302.0,1.57040232]
[1664609645329,0.00907492,19303.0,19302.0,1.57780232]
[1664609645564,0.08907492,19303.0,19302.0,1.21905232]
[1664609646334,0.08907492,19303.0,19302.0,1.57780232]
[1664609646759,0.00907492,19303.0,19302.0,1.57780232]
[1664609647420,0.08907492,19303.0,19302.0,1.57780232]
[1664609647633,0.08907492,19303.0,19302.0,0.4827982]
[1664609647869,0.08907492,19303.0,19302.0,0.0074]
[1664609648093,0.08907492,19303.0,19302.0,0.36615]
[1664609648328,0.08907492,19303.0,19302.0,0.0074]
[1664609648544,0.08907492,19303.0,19302.0,0.36615]
[1664609648982,0.00907492,19303.0,19302.0,0.7416328]
[1664609649211,0.00907492,19303.0,19302.0,0.94253908]
[1664609649436,0.08907492,19303.0,19302.0,0.94253908]
[1664609650745,0.00907492,19303.0,19302.0,0.56705628]
[1664609650967,0.00907492,19303.0,19302.0,0.94253908]
[1664609651551,0.08907492,19303.0,19302.0,0.56705628]
[1664609651778,0.08907492,19303.0,19302.0,0.94253908]
[1664609651992,0.08907492,19303.0,19302.0,0.56705628]
[1664609652329,0.08907492,19303.0,19302.0,0.94253908]
[1664609653033,0.08907492,19303.0,19302.0,0.7416328]
[1664609653249,0.08907492,19303.0,19301.0,0.6477]
[1664609653473,0.16907492,19303.0,19302.0,2.8341482]
[1664609653642,0.16907492,19303.0,19302.0,2.4586654]
[1664609654999,0.00907492,19303.0,19302.0,2.4586654]
[1664609655217,0.13849692,19303.0,19302.0,2.0999154]
[1664609655405,0.13849692,19303.0,19302.0,2.4586654]
[1664609655558,0.21849692,19303.0,19302.0,2.4586654]
[1664609655782,0.21849692,19303.0,19302.0,2.8341482]
[1664609656219,0.21849692,19303.0,19302.0,2.4586654]
[1664609656432,0.21849692,19303.0,19302.0,2.4753982]
[1664609656672,0.21849692,19303.0,19302.0,2.4586654]
[1664609656885,0.21849692,19303.0,19302.0,2.8341482]
[1664609657103,0.21849692,19303.0,19302.0,2.0]
[1664609657382,0.258863,19302.0,19300.0,0.31014163]
[1664609657551,0.258863,19302.0,19301.0,2.35875]
[1664609659496,0.329863,19302.0,19301.0,2.35875]
[1664609660813,0.258863,19302.0,19301.0,2.35875]
[1664609661094,0.258863,19302.0,19301.0,2.35867439]
[1664609661546,0.329863,19302.0,19301.0,2.35867439]
[1664609662890,0.258863,19302.0,19301.0,2.35867439]
[1664609663343,0.258863,19302.0,19300.0,0.31014163]
[1664609663578,0.329863,19302.0,19301.0,0.358966]
[1664609664485,0.329863,19302.0,19300.0,0.68562443]
[1664609664702,0.258863,19302.0,19301.0,2.7344488]
[1664609664967,0.258863,19302.0,19301.0,0.7344488]
[1664609665389,0.258863,19302.0,19300.0,0.68562443]
[1664609665603,0.329863,19302.0,19301.0,2.7344488]
[1664609665839,0.329863,19302.0,19301.0,0.358966]
[1664609666069,0.329863,19302.0,19300.0,0.68562443]
[1664609666351,0.329863,19302.0,19301.0,2.7344488]
[1664609666579,0.329863,19302.0,19301.0,0.7344488]
[1664609666799,0.329863,19302.0,19301.0,0.358966]
[1664609666800,0.258863,19302.0,19301.0,0.358966]
[1664609667027,0.258863,19302.0,19301.0,0.3754828]
[1664609667269,0.258863,19302.0,19300.0,0.68562443]
[1664609667490,0.329863,19302.0,19301.0,2.7344488]
[1664609667709,0.329863,19302.0,19301.0,0.358966]
[1664609667929,0.329863,19302.0,19300.0,0.81515643]
[1664609668150,0.329863,19302.0,19301.0,2.7344488]
[1664609668377,0.329863,19302.0,19301.0,0.358966]
[1664609668895,0.258863,19302.0,19301.0,0.358966]
[1664609669379,0.258863,19302.0,19301.0,0.7344488]
[1664609669611,0.329863,19302.0,19301.0,0.358966]
[1664609670780,0.258863,19302.0,19301.0,0.358966]